[Event "4th Memorial Warakomska-A 2020"]
[Site "Suwalki"]
[Date "2020.08.10"]
[Round "6.7"]
[White "Backiel, Hubert"]
[Black "Szustakowski, Antoni"]
[Result "1-0"]
[ECO "B42"]
[WhiteElo "1943"]
[BlackElo "2295"]
[Annotator "ChessBase"]
[PlyCount "109"]
[EventDate "2020.08.06"]
[EventType "swiss"]
[EventCountry "POL"]
[SourceTitle "playchess.com"]
[Source "ChessBase"]
[SourceQuality "1"]
[TimeControl "40/5400+30:1800+30"]

1. e4 {[%emt 0:00:00]} c5 {[%emt 0:00:00]} 2. Nf3 {[%emt 0:00:00]} e6 {[%emt 0:00:00]} 3. d4 {[%emt 0:00:00]} cxd4 {[%emt 0:00:00]} 4. Nxd4 {[%emt 0:00:00]} a6 {[%emt 0:00:00]} 5. Bd3 {[%emt 0:00:00]} Qc7 {[%emt 0:00:00]} 6. O-O {[%emt 0:00:13]} Nf6 {[%emt 0:00:00]} 7. Qe2 {[%emt 0:00:15]} d6 {[%emt 0:00:03]} 8. f4 {[%emt 0:00:04]} Nbd7 {[%emt 0:00:07]} 9. c4 {[%emt 0:00:51]} g6 {[%emt 0:00:24]} 10. f5 {[%emt 0:01:25]} e5 {[%emt 0:02:01]} 11. Nb3 {[%emt 0:01:11]} Bg7 {[%emt 0:06:27]} 12. Nc3 {[%emt 0:00:08]} b6 {[%emt 0:01:10]} 13. g4 {[%emt 0:17:56]} h6 {[%emt 0:01:13]} 14. fxg6 {[%emt 0:09:32]} fxg6 {[%emt 0:00:18]} 15. Nd5 {[%emt 0:00:03]} Nxd5 {[%emt 0:01:02]} 16. exd5 {[%emt 0:00:08]} Nf8 {[%emt 0:01:04]} 17. Qc2 {[%emt 0:02:08]} e4 {[%emt 0:02:55]} 18. Bxe4 {[%emt 0:02:04]} Be5 {[%emt 0:00:01]} 19. Bxg6+ {[%emt 0:10:04]} Nxg6 {[%emt 0:00:18]} 20. Qxg6+ {[%emt 0:00:10]} Kd8 {[%emt 0:00:01]} 21. Rf7 {[%emt 0:01:56]} Bd7 {[%emt 0:00:17]} 22. Bxh6 {[%emt 0:20:28]} Kc8 {[%emt 0:01:45]} 23. Bg7 {[%emt 0:01:05]} Re8 {[%emt 0:02:18]} 24. Bxe5 {[%emt 0:06:50]} Rxe5 {[%emt 0:00:05]} 25. Qh7 {[%emt 0:00:47]} b5 {[%emt 0:00:45]} 26. cxb5 {[%emt 0:02:33]} Qb6+ {[%emt 0:00:05]} 27. Kh1 {[%emt 0:00:07]} Ra7 {[%emt 0:00:06]} 28. Rf8+ {[%emt 0:05:42]} Be8 {[%emt 0:00:33]} 29. Rc1+ {[%emt 0:01:06]} Kd8 {[%emt 0:00:32]} 30. Qc2 {[%emt 0:03:54]} Ke7 {[%emt 0:00:50]} 31. Rf5 {[%emt 0:03:12]} Bg6 {[%emt 0:02:58]} 32. Rxe5+ {[%emt 0:00:14]} dxe5 {[%emt 0:00:05]} 33. Qe2 {[%emt 0:01:59]} Qd6 {[%emt 0:00:14]} 34. b6 {[%emt 0:04:49]} Qxd5+ {[%emt 0:00:35]} 35. Kg1 {[%emt 0:00:08]} Rd7 {[%emt 0:00:36]} 36. Nc5 {[%emt 0:01:47]} Qd4+ {[%emt 0:00:27]} 37. Kg2 {[%emt 0:01:38]} Rd8 {[%emt 0:00:35]} 38. b7 {[%emt 0:00:50]} Bf7 {[%emt 0:00:08]} 39. Ne4 {[%emt 0:01:41]} Bd5 {[%emt 0:00:37]} 40. Rc7+ {[%emt 0:00:00]} Ke8 {[%emt 0:00:00]} 41. Kf3 {[%emt 0:10:11]} Qb6 {[%emt 0:02:06]} 42. Rh7 {[%emt 0:03:29]} Bxb7 {[%emt 0:02:29]} 43. Kg3 {[%emt 0:01:01]} Rd4 {[%emt 0:04:09]} 44. Qf3 {[%emt 0:01:55]} Qg6 {[%emt 0:03:09]} 45. Nf6+ {[%emt 0:10:30]} Kd8 {[%emt 0:00:27]} 46. Qxb7 {[%emt 0:03:06]} Rd3+ {[%emt 0:00:04]} 47. Kf2 {[%emt 0:00:31]} Qxf6+ {[%emt 0:01:14]} 48. Ke2 {[%emt 0:00:44]} Rd2+ {[%emt 0:00:29]} 49. Kxd2 {[%emt 0:00:07]} Qf2+ {[%emt 0:00:02]} 50. Kd3 {[%emt 0:00:39]} Qf1+ {[%emt 0:00:06]} 51. Ke4 {[%emt 0:00:45]} Qf4+ {[%emt 0:00:32]} 52. Kd5 {[%emt 0:00:40]} Qd4+ {[%emt 0:00:09]} 53. Kc6 {[%emt 0:01:00]} Qc4+ {[%emt 0:00:17]} 54. Kd6 {[%emt 0:01:01]} Qd4+ {[%emt 0:00:13]} 55. Qd5 {[%emt 0:00:38]} 1-0

[Event "4th Memorial Warakomska-A 2020"]
[Site "Suwalki"]
[Date "2020.08.10"]
[Round "6.8"]
[White "Kucza, Karol"]
[Black "Bugajski, Robert"]
[Result "1/2-1/2"]
[ECO "B98"]
[WhiteElo "2245"]
[BlackElo "2081"]
[Annotator "ChessBase"]
[PlyCount "120"]
[EventDate "2020.08.06"]
[EventType "swiss"]
[EventCountry "POL"]
[SourceTitle "playchess.com"]
[Source "ChessBase"]
[SourceQuality "1"]
[TimeControl "40/5400+30:1800+30"]

1. e4 {[%emt 0:00:00]} c5 {[%emt 0:00:00]} 2. Nf3 {[%emt 0:00:00]} d6 {[%emt 0:00:00]} 3. d4 {[%emt 0:00:00]} Nf6 {[%emt 0:00:00]} 4. Nc3 {[%emt 0:00:00]} cxd4 {[%emt 0:00:12]} 5. Nxd4 {[%emt 0:00:00]} a6 {[%emt 0:00:06]} 6. Bg5 {[%emt 0:00:05]} e6 {[%emt 0:00:09]} 7. f4 {[%emt 0:00:05]} Be7 {[%emt 0:00:08]} 8. Qf3 {[%emt 0:00:04]} h6 {[%emt 0:00:08]} 9. Bh4 {[%emt 0:00:05]} Qc7 {[%emt 0:00:16]} 10. O-O-O {[%emt 0:00:13]} Nbd7 {[%emt 0:00:19]} 11. Be2 {[%emt 0:00:34]} b5 {[%emt 0:01:31]} 12. a3 {[%emt 0:02:00]} Rb8 {[%emt 0:01:50]} 13. f5 {[%emt 0:11:02]} e5 {[%emt 0:08:20]} 14. Nb3 {[%emt 0:09:30]} Bb7 {[%emt 0:01:07]} 15. Bxf6 {[%emt 0:03:30]} Nxf6 {[%emt 0:01:39]} 16. g4 {[%emt 0:02:05]} O-O {[%emt 0:00:16]} 17. h4 {[%emt 0:00:27]} Rfc8 {[%emt 0:03:23]} 18. Bd3 {[%emt 0:06:56]} b4 {[%emt 0:09:42]} 19. axb4 {[%emt 0:00:34]} d5 {[%emt 0:00:47]} 20. exd5 {[%emt 0:06:39]} Bxb4 {[%emt 0:04:15]} 21. g5 {[%emt 0:00:29]} Bxc3 {[%emt 0:05:00]} 22. gxf6 {[%emt 0:00:46]} e4 {[%emt 0:01:01]} 23. Bxe4 {[%emt 0:01:00]} Bxf6 {[%emt 0:01:24]} 24. Rd2 {[%emt 0:08:24]} Qb6 {[%emt 0:03:47]} 25. Kb1 {[%emt 0:08:09]} a5 {[%emt 0:05:11]} 26. Qf2 {[%emt 0:02:30]} Qb4 {[%emt 0:06:15]} 27. Rd4 {[%emt 0:00:17]} Bxd4 {[%emt 0:02:11]} 28. Qxd4 {[%emt 0:00:06]} Qxd4 {[%emt 0:16:39]} 29. Nxd4 {[%emt 0:01:31]} a4 {[%emt 0:06:13]} 30. Rd1 {[%emt 0:03:08]} Rc5 {[%emt 0:00:53]} 31. Nc6 {[%emt 0:01:35]} Bxc6 {[%emt 0:05:15]} 32. dxc6 {[%emt 0:01:10]} Re8 {[%emt 0:08:03]} 33. Rd4 {[%emt 0:01:14]} Rce5 {[%emt 0:02:16]} 34. Bd3 {[%emt 0:04:28]} Rc5 {[%emt 0:01:27]} 35. Rxa4 {[%emt 0:03:47]} Rxc6 {[%emt 0:00:18]} 36. b4 {[%emt 0:00:15]} Kf8 {[%emt 0:01:36]} 37. b5 {[%emt 0:00:19]} Rc5 {[%emt 0:01:27]} 38. Kb2 {[%emt 0:00:33]} Rd8 {[%emt 0:01:11]} 39. Rb4 {[%emt 0:02:21]} Ke7 {[%emt 0:01:03]} 40. Kb3 {[%emt 0:00:00]} Kd6 {[%emt 0:00:00]} 41. Rd4+ {[%emt 0:07:42]} Rd5 {[%emt 0:02:27]} 42. Rxd5+ {[%emt 0:00:10]} Kxd5 {[%emt 0:00:02]} 43. Kb4 {[%emt 0:00:09]} Kd4 {[%emt 0:01:26]} 44. Bf1 {[%emt 0:05:31]} Rc8 {[%emt 0:03:55]} 45. c4 {[%emt 0:00:20]} Ra8 {[%emt 0:00:20]} 46. c5 {[%emt 0:04:35]} Ra1 {[%emt 0:03:27]} 47. c6 {[%emt 0:00:26]} Rb1+ {[%emt 0:03:42]} 48. Ka5 {[%emt 0:00:36]} Kc5 {[%emt 0:05:35]} 49. Ka6 {[%emt 0:00:06]} Kd6 {[%emt 0:05:55]} 50. Kb7 {[%emt 0:02:17]} Rxf1 {[%emt 0:00:22]} 51. c7 {[%emt 0:00:04]} Rc1 {[%emt 0:01:10]} 52. c8=Q {[%emt 0:00:08]} Rxc8 {[%emt 0:00:43]} 53. Kxc8 {[%emt 0:00:06]} Kc5 {[%emt 0:00:37]} 54. h5 {[%emt 0:03:45]} Kxb5 {[%emt 0:00:02]} 55. Kd7 {[%emt 0:00:07]} Kc5 {[%emt 0:00:53]} 56. Ke7 {[%emt 0:00:06]} Kd5 {[%emt 0:00:03]} 57. Kxf7 {[%emt 0:01:26]} Ke5 {[%emt 0:00:01]} 58. Kg6 {[%emt 0:00:13]} Ke4 {[%emt 0:02:02]} 59. f6 {[%emt 0:00:18]} gxf6 {[%emt 0:00:04]} 60. Kxh6 {[%emt 0:00:24]} f5 {[%emt 0:00:00]} 1/2-1/2

[Event "4th Memorial Warakomska-A 2020"]
[Site "Suwalki"]
[Date "2020.08.10"]
[Round "6.9"]
[White "Budzisz, Adrian"]
[Black "Leskiewicz, Ignacy"]
[Result "1/2-1/2"]
[ECO "B06"]
[WhiteElo "1823"]
[BlackElo "2190"]
[Annotator "ChessBase"]
[PlyCount "104"]
[EventDate "2020.08.06"]
[EventType "swiss"]
[EventCountry "POL"]
[SourceTitle "playchess.com"]
[Source "ChessBase"]
[SourceQuality "1"]
[TimeControl "40/5400+30:1800+30"]

1. e4 g6 {[%emt 0:03:07]} 2. d4 {[%emt 0:02:10]} Bg7 {[%emt 0:00:06]} 3. f4 {[%emt 0:00:57]} d5 {[%emt 0:04:11]} 4. e5 {[%emt 0:02:05]} e6 {[%emt 0:23:45]} 5. Nf3 {[%emt 0:00:50]} Ne7 {[%emt 0:00:23]} 6. Bd3 {[%emt 0:01:13]} b6 {[%emt 0:04:23]} 7. O-O {[%emt 0:02:24]} h5 {[%emt 0:14:40]} 8. g3 {[%emt 0:06:51]} Ba6 {[%emt 0:08:10]} 9. Bxa6 {[%emt 0:03:14]} Nxa6 {[%emt 0:00:01]} 10. c3 {[%emt 0:00:08]} Qd7 {[%emt 0:04:52]} 11. a4 {[%emt 0:01:35]} c5 {[%emt 0:14:04]} 12. b3 {[%emt 0:05:57]} cxd4 {[%emt 0:01:26]} 13. cxd4 {[%emt 0:01:01]} Nb4 {[%emt 0:02:59]} 14. Ba3 {[%emt 0:01:39]} a5 {[%emt 0:02:13]} 15. Nc3 {[%emt 0:02:05]} O-O {[%emt 0:02:10]} 16. Nb5 {[%emt 0:05:21]} Rfc8 {[%emt 0:03:23]} 17. Bxb4 {[%emt 0:01:48]} axb4 {[%emt 0:00:02]} 18. Qd2 {[%emt 0:00:13]} Nc6 {[%emt 0:01:42]} 19. Ne1 {[%emt 0:00:41]} Na7 {[%emt 0:04:10]} 20. Nxa7 {[%emt 0:03:59]} Rxa7 {[%emt 0:00:01]} 21. Qxb4 {[%emt 0:00:08]} Bf8 {[%emt 0:00:10]} 22. Qd2 {[%emt 0:00:11]} b5 {[%emt 0:00:25]} 23. a5 {[%emt 0:02:14]} b4 {[%emt 0:00:12]} 24. Ra4 {[%emt 0:01:55]} Qb5 {[%emt 0:02:06]} 25. Qa2 {[%emt 0:02:31]} Rca8 {[%emt 0:01:55]} 26. Qc2 {[%emt 0:02:56]} Rxa5 {[%emt 0:00:19]} 27. Rxa5 {[%emt 0:00:08]} Rxa5 {[%emt 0:00:40]} 28. Nd3 {[%emt 0:00:35]} Qa6 {[%emt 0:00:44]} 29. Rf2 {[%emt 0:01:28]} Qa7 {[%emt 0:00:38]} 30. Qb2 {[%emt 0:01:19]} Ra1+ {[%emt 0:01:15]} 31. Kg2 {[%emt 0:00:40]} Rd1 {[%emt 0:00:20]} 32. Qe2 {[%emt 0:04:56]} Qa1 {[%emt 0:00:35]} 33. f5 {[%emt 0:01:09]} Rg1+ {[%emt 0:00:22]} 34. Kh3 {[%emt 0:00:23]} Qxd4 {[%emt 0:00:46]} 35. fxe6 {[%emt 0:00:36]} fxe6 {[%emt 0:00:29]} 36. Nf4 {[%emt 0:01:20]} Qe4 {[%emt 0:00:34]} 37. Qxe4 {[%emt 0:01:33]} dxe4 {[%emt 0:00:01]} 38. Nxg6 {[%emt 0:00:21]} Bc5 {[%emt 0:00:29]} 39. Re2 {[%emt 0:00:20]} e3 {[%emt 0:00:20]} 40. Nf4 {[%emt 0:00:00]} Rb1 {[%emt 0:00:00]} 41. Nd3 {[%emt 0:01:45]} Bb6 {[%emt 0:08:10]} 42. Nxb4 {[%emt 0:02:18]} Rxb3 {[%emt 0:01:27]} 43. Nc2 {[%emt 0:00:55]} Rb5 {[%emt 0:05:40]} 44. Kg2 {[%emt 0:00:15]} Rxe5 {[%emt 0:00:08]} 45. Kf3 {[%emt 0:00:08]} Rf5+ {[%emt 0:00:14]} 46. Ke4 {[%emt 0:01:00]} Rf2 {[%emt 0:00:17]} 47. Kd3 {[%emt 0:00:04]} e5 {[%emt 0:15:35]} 48. Nxe3 {[%emt 0:01:11]} e4+ {[%emt 0:00:04]} 49. Kd2 {[%emt 0:00:06]} Ba5+ {[%emt 0:00:22]} 50. Kd1 {[%emt 0:00:06]} Rf3 {[%emt 0:00:11]} 51. Kc2 {[%emt 0:00:47]} Bb6 {[%emt 0:02:04]} 52. Nd5 {[%emt 0:00:30]} Bg1 {[%emt 0:00:35]} 1/2-1/2

[Event "4th Memorial Warakomska-A 2020"]
[Site "Suwalki"]
[Date "2020.08.10"]
[Round "6.10"]
[White "Deruelle Sala, Albert"]
[Black "Wolanski, Michal"]
[Result "1-0"]
[ECO "E42"]
[WhiteElo "2078"]
[BlackElo "2019"]
[Annotator "NA"]
[PlyCount "63"]
[EventDate "2020.08.06"]
[EventType "swiss"]
[EventCountry "POL"]
[SourceTitle "playchess.com"]
[Source "ChessBase"]
[SourceQuality "1"]
[TimeControl "40/5400+30:1800+30"]

{[%evp 18,54,73,63,58,62,68,50,72,67,66,79,32767,32767,131,32767,32767,32767,32767,32767,33,32767,45,84,177,168,176,32767,263,283,283,32767,308,32767,277,326,32767,336,317]} 1. d4 {[%emt 0:00:00]} Nf6 {[%emt 0:00:00]} 2. c4 {[%emt 0:00:00]} e6 {[%emt 0:00:00]} 3. Nc3 {[%emt 0:00:00]} Bb4 {[%emt 0:00:00]} 4. e3 {[%emt 0:00:54]} c5 {[%emt 0:00:25]} 5. Nge2 {[%emt 0:00:43]} cxd4 {[%emt 0:00:51]} 6. exd4 {[%emt 0:00:10]} b6 {[%emt 0:00:32] E42: Nimzo-Indian: Rubinstein: 4...c5 5 Ne2.} 7. a3 {[%emt 0:03:05]} Be7 {[%emt 0:01:19]} 8. g3 {[%emt 0:00:29]} Bb7 {[%emt 0:00:24]} 9. d5 {[%emt 0:00:07]} O-O {[%emt 0:03:33]} 10. Bg2 {[%emt 0:00:16]} e5 {[%emt 0:02:56]} 11. O-O {[%emt 0:01:25]} d6 {[%emt 0:00:18]} 12. h3 {[%emt 0:01:53]} Nbd7 {[%emt 0:03:16]} 13. g4 {[%emt 0:01:13]} Rc8 {[%emt 0:03:38] [#]} 14. b3 $1 {[%emt 0:00:25] [#]} Nc5 $146 {[%emt 0:05:48]} ({Predecessor:} 14... a6 15. a4 Nc5 16. Ng3 a5 17. Nf5 Ne8 18. f4 f6 19. Be3 Rf7 20. Nxe7+ Qxe7 {1-0 (72) Evangelisti,C (2315)-Kovacs,L Eksjo 1980}) 15. Ng3 {[%emt 0:02:37]} g6 {[%emt 0:03:44]} (15... Ne8 $14) 16. Bh6 {[%emt 0:02:33]} Re8 {[%emt 0:00:08]} 17. h4 {[%emt 0:01:04]} Bf8 {[%emt 0:01:20]} 18. Bxf8 {[%emt 0:01:43]} Rxf8 {[%emt 0:00:20]} 19. Bh3 {[%emt 0:03:16]} Ra8 {[%emt 0:05:06]} 20. b4 {[%emt 0:00:41]} Na6 {[%emt 0:02:33]} (20... Ncd7 $14) 21. g5 {[%emt 0:00:35]} Ne8 {[%emt 0:00:55]} 22. f4 {[%emt 0:01:18]} Bc8 {[%emt 0:07:02]} (22... exf4 {was necessary.} 23. Rxf4 Bc8) 23. f5 {[%emt 0:01:18]} f6 {[%emt 0:03:14]} 24. Nce4 {[%emt 0:01:01]} Rb8 {[%emt 0:08:31]} 25. Kh2 {[%emt 0:05:03]} Rb7 {[%emt 0:01:47]} 26. Qd2 {[%emt 0:04:33]} Rg7 {[%emt 0:12:35]} 27. Rf2 {[%emt 0:02:45]} Nac7 $18 {[%emt 0:02:55]} 28. Raf1 {[%emt 0:03:07]} fxg5 {[%emt 0:09:36]} 29. fxg6 {[%emt 0:02:20]} Rxf2+ {[%emt 0:02:44]} 30. Qxf2 {[%emt 0:00:24]} Kh8 {[%emt 0:02:16]} 31. Nxg5 {[%emt 0:00:39]} hxg6 {[%emt 0:01:39]} 32. Qf8+ {[%emt 0:00:13]} 1-0

[Event "4th Memorial Warakomska-A 2020"]
[Site "Suwalki"]
[Date "2020.08.10"]
[Round "6.11"]
[White "Korbal, Arkadiusz"]
[Black "Jarocka, Liwia"]
[Result "1-0"]
[ECO "A83"]
[WhiteElo "2113"]
[BlackElo "1934"]
[Annotator "ChessBase"]
[PlyCount "47"]
[EventDate "2020.08.06"]
[EventType "swiss"]
[EventCountry "POL"]
[SourceTitle "playchess.com"]
[Source "ChessBase"]
[SourceQuality "1"]
[TimeControl "40/5400+30:1800+30"]

1. d4 {[%emt 0:03:36]} f5 {[%emt 0:00:00]} 2. e4 {[%emt 0:01:21]} fxe4 {[%emt 0:00:00]} 3. Nc3 {[%emt 0:00:06]} Nf6 {[%emt 0:00:08]} 4. Bg5 {[%emt 0:00:08]} g6 {[%emt 0:01:17]} 5. h4 {[%emt 0:02:34]} Bg7 {[%emt 0:06:36]} 6. h5 {[%emt 0:04:53]} d5 {[%emt 0:02:19]} 7. h6 {[%emt 0:02:03]} Bf8 {[%emt 0:00:06]} 8. Qd2 {[%emt 0:02:46]} e6 {[%emt 0:02:53]} 9. f3 {[%emt 0:00:49]} Be7 {[%emt 0:04:12]} 10. fxe4 {[%emt 0:03:56]} Nxe4 {[%emt 0:00:43]} 11. Nxe4 {[%emt 0:00:11]} dxe4 {[%emt 0:00:05]} 12. Nh3 {[%emt 0:02:37]} Nc6 {[%emt 0:08:56]} 13. Bb5 {[%emt 0:01:56]} O-O {[%emt 0:00:23]} 14. O-O-O {[%emt 0:01:00]} Nb4 {[%emt 0:10:01]} 15. Qxb4 {[%emt 0:18:44]} Bxg5+ {[%emt 0:04:33]} 16. Nxg5 {[%emt 0:00:21]} Qxg5+ {[%emt 0:00:07]} 17. Kb1 {[%emt 0:00:06]} a6 {[%emt 0:06:02]} 18. Bc4 {[%emt 0:03:46]} b5 {[%emt 0:01:31]} 19. Bb3 {[%emt 0:03:36]} a5 {[%emt 0:14:32]} 20. Qc3 {[%emt 0:00:48]} Qe7 {[%emt 0:14:07]} 21. a3 {[%emt 0:07:00]} Bb7 {[%emt 0:00:54]} 22. d5 {[%emt 0:00:10]} exd5 {[%emt 0:01:33]} 23. Rxd5 {[%emt 0:00:13]} Rf7 {[%emt 0:02:09]} 24. Rd8+ {[%emt 0:00:39]} 1-0

[Event "4th Memorial Warakomska-A 2020"]
[Site "Suwalki"]
[Date "2020.08.10"]
[Round "6.12"]
[White "Krasiewicz, Robert"]
[Black "Jakhari, Ansh"]
[Result "1-0"]
[ECO "A20"]
[WhiteElo "2033"]
[BlackElo "1908"]
[Annotator "ChessBase"]
[PlyCount "89"]
[EventDate "2020.08.06"]
[EventType "swiss"]
[EventCountry "POL"]
[SourceTitle "playchess.com"]
[Source "ChessBase"]
[SourceQuality "1"]
[TimeControl "40/5400+30:1800+30"]

1. c4 {[%emt 0:00:25]} e5 {[%emt 0:00:26]} 2. g3 {[%emt 0:00:04]} Nf6 {[%emt 0:00:21]} 3. Bg2 {[%emt 0:00:02]} d5 {[%emt 0:00:13]} 4. cxd5 {[%emt 0:00:06]} Nxd5 {[%emt 0:00:07]} 5. Nf3 {[%emt 0:00:08]} Nc6 {[%emt 0:00:13]} 6. O-O {[%emt 0:00:06]} Nb6 {[%emt 0:01:17]} 7. d3 {[%emt 0:02:27]} Be7 {[%emt 0:00:08]} 8. a3 {[%emt 0:00:15]} Be6 {[%emt 0:00:25]} 9. b3 {[%emt 0:00:56]} O-O {[%emt 0:00:33]} 10. Bb2 {[%emt 0:00:48]} f6 {[%emt 0:00:18]} 11. Nbd2 {[%emt 0:00:03]} a5 {[%emt 0:06:18]} 12. Qc2 {[%emt 0:01:56]} Qd7 {[%emt 0:03:01]} 13. Rfd1 {[%emt 0:03:09]} Rab8 {[%emt 0:04:09]} 14. Rac1 {[%emt 0:04:16]} Rfc8 {[%emt 0:01:26]} 15. Nc4 {[%emt 0:04:40]} a4 {[%emt 0:07:02]} 16. b4 {[%emt 0:02:02]} Nd4 {[%emt 0:01:07]} 17. Nxd4 {[%emt 0:05:22]} exd4 {[%emt 0:00:08]} 18. Nxb6 {[%emt 0:00:41]} cxb6 {[%emt 0:00:07]} 19. Qd2 {[%emt 0:00:21]} Rd8 {[%emt 0:17:16]} 20. Qf4 {[%emt 0:02:45]} g5 {[%emt 0:03:07]} 21. Qc7 {[%emt 0:03:24]} Bb3 {[%emt 0:03:31]} 22. Re1 {[%emt 0:10:33]} Qe6 {[%emt 0:02:19]} 23. Bxd4 {[%emt 0:03:57]} Rbc8 {[%emt 0:10:22]} 24. Qxb6 {[%emt 0:00:35]} Rd6 {[%emt 0:00:15]} 25. Rxc8+ {[%emt 0:01:12]} Qxc8 {[%emt 0:00:05]} 26. Qa7 {[%emt 0:05:20]} Qc2 {[%emt 0:03:17]} 27. Qxb7 {[%emt 0:02:14]} Qd2 {[%emt 0:01:07]} 28. Kf1 {[%emt 0:00:27]} Kf8 {[%emt 0:04:58]} 29. Bc5 {[%emt 0:05:36]} Re6 {[%emt 0:00:12]} 30. Bh3 {[%emt 0:03:13]} Re5 {[%emt 0:02:52]} 31. d4 {[%emt 0:01:14]} Rxe2 {[%emt 0:01:36]} 32. Bxe7+ {[%emt 0:00:20]} Kf7 {[%emt 0:01:19]} 33. Bxf6+ {[%emt 0:01:50]} Kxf6 {[%emt 0:00:25]} 34. Qf3+ {[%emt 0:00:06]} Kg7 {[%emt 0:00:37]} 35. Qxe2 {[%emt 0:00:11]} Qxd4 {[%emt 0:00:56]} 36. Qe5+ {[%emt 0:00:14]} Qxe5 {[%emt 0:00:07]} 37. Rxe5 {[%emt 0:00:06]} Kf6 {[%emt 0:00:14]} 38. Rf5+ {[%emt 0:00:25]} Kg6 {[%emt 0:00:16]} 39. b5 {[%emt 0:00:28]} Be6 {[%emt 0:00:09]} 40. g4 {[%emt 0:00:00]} Bxf5 {[%emt 0:00:00]} 41. gxf5+ {[%emt 0:00:22]} Kh5 {[%emt 0:00:25]} 42. b6 {[%emt 0:00:15]} Kh4 {[%emt 0:00:06]} 43. b7 {[%emt 0:00:17]} Kxh3 {[%emt 0:00:06]} 44. b8=Q {[%emt 0:00:05]} h5 {[%emt 0:00:08]} 45. Qg3# {[%emt 0:00:08]} 1-0

[Event "4th Memorial Warakomska-A 2020"]
[Site "Suwalki"]
[Date "2020.08.10"]
[Round "6.13"]
[White "Rosol, Alexander"]
[Black "Jurkiewicz, Krzysztof"]
[Result "1-0"]
[ECO "B75"]
[WhiteElo "1933"]
[BlackElo "2275"]
[Annotator "ChessBase"]
[PlyCount "69"]
[EventDate "2020.08.06"]
[EventType "swiss"]
[EventCountry "POL"]
[SourceTitle "playchess.com"]
[Source "ChessBase"]
[SourceQuality "1"]
[TimeControl "40/5400+30:1800+30"]

1. e4 {[%emt 0:00:00]} c5 {[%emt 0:00:00]} 2. Nf3 {[%emt 0:00:00]} d6 {[%emt 0:00:00]} 3. d4 {[%emt 0:00:05]} cxd4 {[%emt 0:00:00]} 4. Nxd4 {[%emt 0:00:04]} Nf6 {[%emt 0:00:00]} 5. Nc3 {[%emt 0:00:09]} g6 {[%emt 0:00:00]} 6. Be3 {[%emt 0:00:28]} Bg7 {[%emt 0:00:03]} 7. f3 {[%emt 0:00:20]} a6 {[%emt 0:00:54]} 8. Qd2 {[%emt 0:02:03]} Nbd7 {[%emt 0:00:31]} 9. g4 {[%emt 0:03:00]} b5 {[%emt 0:00:37]} 10. g5 {[%emt 0:03:41]} Nh5 {[%emt 0:00:30]} 11. O-O-O {[%emt 0:10:35]} Bb7 {[%emt 0:02:23]} 12. Be2 {[%emt 0:17:47]} Qa5 {[%emt 0:21:07]} 13. Kb1 {[%emt 0:10:11]} Nc5 {[%emt 0:10:14]} 14. Nb3 {[%emt 0:04:06]} Nxb3 {[%emt 0:01:27]} 15. axb3 {[%emt 0:00:09]} Rc8 {[%emt 0:11:02]} 16. Nd5 {[%emt 0:09:28]} Qxd2 {[%emt 0:00:56]} 17. Rxd2 {[%emt 0:00:21]} e6 {[%emt 0:05:08]} 18. Nb6 {[%emt 0:02:03]} Rc6 {[%emt 0:00:33]} 19. c4 {[%emt 0:01:11]} b4 {[%emt 0:03:21]} 20. Rhd1 {[%emt 0:01:28]} Be5 {[%emt 0:08:31]} 21. c5 {[%emt 0:04:13]} Bf4 {[%emt 0:00:52]} 22. Nc4 {[%emt 0:00:33]} Bxe3 {[%emt 0:03:49]} 23. Nxe3 {[%emt 0:00:31]} Rxc5 {[%emt 0:01:32]} 24. Rxd6 {[%emt 0:00:14]} O-O {[%emt 0:00:44]} 25. h4 {[%emt 0:01:21]} a5 {[%emt 0:05:50]} 26. Ng4 {[%emt 0:00:39]} Kg7 {[%emt 0:03:17]} 27. Bc4 {[%emt 0:00:35]} Nf4 {[%emt 0:03:44]} 28. Nf6 {[%emt 0:01:07]} Rfc8 {[%emt 0:02:02]} 29. Rd7 {[%emt 0:00:58]} Ba8 {[%emt 0:02:34]} 30. Ba6 {[%emt 0:05:11]} Rf8 {[%emt 0:03:03]} 31. Rd8 {[%emt 0:02:35]} Bc6 {[%emt 0:01:51]} 32. R1d2 {[%emt 0:05:40]} h6 {[%emt 0:00:32]} 33. gxh6+ {[%emt 0:02:47]} Kxf6 {[%emt 0:00:24]} 34. Rxf8 {[%emt 0:00:23]} Rh5 {[%emt 0:01:45]} 35. Rc8 {[%emt 0:00:25]} 1-0

[Event "4th Memorial Warakomska-A 2020"]
[Site "Suwalki"]
[Date "2020.08.10"]
[Round "6.14"]
[White "Choroszej, Aleksander"]
[Black "Chojnowski, Marcin"]
[Result "1-0"]
[ECO "E20"]
[WhiteElo "2059"]
[BlackElo "2035"]
[Annotator "ChessBase"]
[PlyCount "42"]
[EventDate "2020.08.06"]
[EventType "swiss"]
[EventCountry "POL"]
[SourceTitle "playchess.com"]
[Source "ChessBase"]
[SourceQuality "1"]
[TimeControl "40/5400+30:1800+30"]

1. d4 {[%emt 0:00:00]} Nf6 {[%emt 0:00:00]} 2. c4 {[%emt 0:00:12]} e6 {[%emt 0:00:05]} 3. Nc3 {[%emt 0:00:15]} Bb4 {[%emt 0:00:04]} 4. f3 {[%emt 0:00:21]} c5 {[%emt 0:00:18]} 5. d5 {[%emt 0:00:31]} b5 {[%emt 0:00:24]} 6. e4 {[%emt 0:02:42]} O-O {[%emt 0:00:50]} 7. e5 {[%emt 0:08:43]} Ne8 {[%emt 0:01:27]} 8. f4 {[%emt 0:04:13]} d6 {[%emt 0:05:37]} 9. Nf3 {[%emt 0:02:35]} Bxc3+ {[%emt 0:18:07]} 10. bxc3 {[%emt 0:00:09]} Qa5 {[%emt 0:02:31]} 11. Be2 {[%emt 0:09:42]} Qxc3+ {[%emt 0:06:36]} 12. Bd2 {[%emt 0:00:13]} Qa3 {[%emt 0:00:11]} 13. O-O {[%emt 0:05:06]} bxc4 {[%emt 0:07:07]} 14. dxe6 {[%emt 0:06:25]} Bxe6 {[%emt 0:01:46]} 15. Ng5 {[%emt 0:00:22]} Qa6 {[%emt 0:10:57]} 16. Qc2 {[%emt 0:01:47]} g6 {[%emt 0:00:36]} 17. f5 {[%emt 0:08:12]} Bd5 {[%emt 0:08:52]} 18. e6 {[%emt 0:00:30]} f6 {[%emt 0:13:44]} 19. fxg6 {[%emt 0:01:06]} h6 {[%emt 0:00:47]} 20. g7 {[%emt 0:05:12]} hxg5 {[%emt 0:00:21]} 21. gxf8=Q+ {[%emt 0:00:35]} Kxf8 {[%emt 0:00:01]} 1-0